Workbook

Sheet Cover
B3: Excel + VBA
B4: für Controller
B7: Kapitel | C7: 7
B8: Thema | C8: Strategisches Prozess-Controlling
B10: Inhalt | C10: Abschreibungsverfahren
B18: Version | C18: 1.0
B19: Autor | C19: Harald Nahrstedt
B20: Datum | C20: 2025-04-26
B23: Springer Verlag

Sheet Sammelposten (GWG)
A1: Posten | B1: Nettopreis | C1: Anzahl | D1: Gesamt | F1: Jahr | G1: Buchwert | H1: Abschr.Wert | I1: Restwert
A2: Laptop | B2: 587 | C2: 8 | D2: =NettopreisGWG*AnzahlGWG -> 4696 | F2: 1 | G2: =SummeGWG -> 8536 | H2: =SummeGWG*AbschreibungGWG -> 1707.2 | I2: =BuchwertGWG-Abschr.WertGWG -> 6828.8
A3: Telefon | B3: 226 | C3: 12 | D3: =NettopreisGWG*AnzahlGWG -> 2712 | F3: 2 | G3: =I2 -> 6828.8 | H3: =SummeGWG*AbschreibungGWG -> 1707.2 | I3: =BuchwertGWG-Abschr.WertGWG -> 5121.6
A4: Schreibtischlampe | B4: 188 | C4: 6 | D4: =NettopreisGWG*AnzahlGWG -> 1128 | F4: 3 | G4: =I3 -> 5121.6 | H4: =SummeGWG*AbschreibungGWG -> 1707.2 | I4: =BuchwertGWG-Abschr.WertGWG -> 3414.4
A5: Summe der Einzelposten | D5: =SUM(GesamtGWG) -> 8536 | F5: 4 | G5: =I4 -> 3414.4 | H5: =SummeGWG*AbschreibungGWG -> 1707.2 | I5: =BuchwertGWG-Abschr.WertGWG -> 1707.2
F6: 5 | G6: 1707.2 | H6: =SummeGWG*AbschreibungGWG -> 1707.2 | I6: =BuchwertGWG-Abschr.WertGWG -> 0
A7: Abschreibung | B7: 0.2

Sheet lineare Abschreibung
C1: Anschaffungswert | D1: 90000
C2: Restwert am Ende der Nutzungsdauer | D2: 0
C3: Nutzungsdauer in Jahren | D3: 10
A5: Abschreibungsbetrag manuell berechnen | D5: =(AnschaffungswertLA-RestwertLA)/NutzungsdauerLA -> 9000
A6: Abschreibungsbetrag mit der Funktion LIA | D6: =SLN(AnschaffungswertLA,RestwertLA,NutzungsdauerLA) -> 9000
A8: Jahr | B8: Buchwert | C8: Abschreibungswert | D8: Restwert
A9: 1 | B9: =AnschaffungswertLA -> 90000 | C9: =AbschreibungsbetragLA -> 9000 | D9: =B9-C9 -> 81000
A10: 2 | B10: =D9 -> 81000 | C10: 9000 | D10: =B10-C10 -> 72000
A11: 3 | B11: =D10 -> 72000 | C11: 9000 | D11: =B11-C11 -> 63000
A12: 4 | B12: 63000 | C12: 9000 | D12: 54000
A13: 5 | B13: 54000 | C13: 9000 | D13: 45000
A14: 6 | B14: 45000 | C14: 9000 | D14: 36000
A15: 7 | B15: 36000 | C15: 9000 | D15: 27000
A16: 8 | B16: 27000 | C16: 9000 | D16: 18000
A17: 9 | B17: 18000 | C17: 9000 | D17: 9000
A18: 10 | B18: 9000 | C18: 9000 | D18: 0
